[Event "Titled Tuesday Blitz March 21 Early 2023"]
[White "Ordekalog"]
[Black "Escanor89"]
[WhiteElo "2577"]
[BlackElo "2430"]
[Result "1-0"]
[Round "07"]
[TimeControl "180+2"]
[Date "2023.03.21"]
[WhiteClock "0:00:03"]
[BlackClock "0:00:02"]

1. e4 {[%clk 0:03:00]}  c5 {[%clk 0:02:59]} 2. d3 {[%clk 0:03:00]}  Nc6 {[%clk 0:02:58]} 3. g3 {[%clk 0:02:59]}  g6 {[%clk 0:02:59]} 4. Bg2 {[%clk 0:02:59]}  Bg7 {[%clk 0:03:00]} 5. f4 {[%clk 0:02:59]}  d6 {[%clk 0:03:00]} 6. Nf3 {[%clk 0:02:58]}  Nf6 {[%clk 0:03:00]} 7. O-O {[%clk 0:02:58]}  O-O {[%clk 0:02:59]} 8. c3 {[%clk 0:02:57]}  Rb8 {[%clk 0:02:59]} 9. a4 {[%clk 0:02:56]}  a6 {[%clk 0:02:59]} 10. Qe2 {[%clk 0:02:56]}  Nd7 {[%clk 0:02:57]} 11. Be3 {[%clk 0:02:49]}  b5 {[%clk 0:02:56]} 12. axb5 {[%clk 0:02:48]}  axb5 {[%clk 0:02:57]} 13. d4 {[%clk 0:02:49]}  e6 {[%clk 0:02:29]} 14. Nbd2 {[%clk 0:02:44]}  b4 {[%clk 0:02:19]} 15. Nc4 {[%clk 0:02:31]}  Qc7 {[%clk 0:02:19]} 16. e5 {[%clk 0:02:20]}  cxd4 {[%clk 0:02:04]} 17. cxd4 {[%clk 0:02:19]}  dxe5 {[%clk 0:02:03]} 18. dxe5 {[%clk 0:02:19]}  Ne7 {[%clk 0:01:42]} 19. Rfc1 {[%clk 0:02:12]}  Bb7 {[%clk 0:01:20]} 20. Nd6 {[%clk 0:02:05]}  Qd8 {[%clk 0:01:19]} 21. Ra7 {[%clk 0:01:47]}  Bd5 {[%clk 0:01:17]} 22. Rcc7 {[%clk 0:01:40]}  Bc6 {[%clk 0:01:04]} 23. Nd4 {[%clk 0:01:37]}  Bxg2 {[%clk 0:01:02]} 24. Kxg2 {[%clk 0:01:34]}  Nxe5 {[%clk 0:00:56]} 25. fxe5 {[%clk 0:01:02]}  Bxe5 {[%clk 0:00:54]} 26. Rxe7 {[%clk 0:00:47]}  Qxd6 {[%clk 0:00:51]} 27. Nf3 {[%clk 0:00:43]}  Bg7 {[%clk 0:00:44]} 28. Rad7 {[%clk 0:00:31]}  Qc6 {[%clk 0:00:42]} 29. b3 {[%clk 0:00:29]}  Rbc8 {[%clk 0:00:31]} 30. Kf2 {[%clk 0:00:28]}  Qe4 {[%clk 0:00:27]} 31. Nd2 {[%clk 0:00:26]}  Qh1 {[%clk 0:00:22]} 32. Nf1 {[%clk 0:00:19]}  Qe4 {[%clk 0:00:21]} 33. Nd2 {[%clk 0:00:14]}  Qh1 {[%clk 0:00:19]} 34. Nf3 {[%clk 0:00:14]}  Qb1 {[%clk 0:00:14]} 35. Rd3 {[%clk 0:00:09]}  Rc2 {[%clk 0:00:12]} 36. Nd2 {[%clk 0:00:07]}  Qa2 {[%clk 0:00:10]} 37. Red7 {[%clk 0:00:04]}  Bc3 {[%clk 0:00:10]} 38. Qf3 {[%clk 0:00:04]}  Qxb3 {[%clk 0:00:09]} 39. Bh6 {[%clk 0:00:03]}  Qa2 {[%clk 0:00:04]} 40. Bxf8 {[%clk 0:00:03]}  Bxd2 {[%clk 0:00:02]} 41. Qxf7+ {[%clk 0:00:03]} 1-0


[Site "https://www.chess.com"]

[Event "Titled Tuesday Blitz March 21 Early 2023"]
[White "Shevtchenko, Olesya"]
[Black "Loiacono, Antonio"]
[WhiteFideId "24131890"]
[BlackFideId "895415"]
[WhiteElo "2003"]
[BlackElo "2257"]
[Result "1-0"]
[Round "07"]
[TimeControl "180+2"]
[Date "2023.03.21"]
[WhiteClock "0:01:02"]
[BlackClock "0:00:13"]

1. e4 {[%clk 0:02:58]}  e5 {[%clk 0:02:59]} 2. Nf3 {[%clk 0:02:58]}  Nc6 {[%clk 0:03:00]} 3. Nc3 {[%clk 0:02:57]}  Nf6 {[%clk 0:03:00]} 4. d4 {[%clk 0:02:57]}  exd4 {[%clk 0:02:58]} 5. Nxd4 {[%clk 0:02:57]}  Bb4 {[%clk 0:02:57]} 6. Nxc6 {[%clk 0:02:57]}  bxc6 {[%clk 0:02:58]} 7. Bd3 {[%clk 0:02:57]}  O-O {[%clk 0:02:57]} 8. O-O {[%clk 0:02:56]}  Re8 {[%clk 0:02:58]} 9. Qf3 {[%clk 0:02:50]}  h6 {[%clk 0:02:54]} 10. h3 {[%clk 0:02:47]}  d6 {[%clk 0:02:54]} 11. Bd2 {[%clk 0:02:44]}  Rb8 {[%clk 0:02:50]} 12. a3 {[%clk 0:02:44]}  Bc5 {[%clk 0:02:50]} 13. b4 {[%clk 0:02:43]}  Bd4 {[%clk 0:02:50]} 14. Rae1 {[%clk 0:02:40]}  Nd7 {[%clk 0:02:49]} 15. Ne2 {[%clk 0:02:37]}  Bf6 {[%clk 0:02:48]} 16. Qg3 {[%clk 0:02:31]}  Bh4 {[%clk 0:02:37]} 17. Qg4 {[%clk 0:02:17]}  Ne5 {[%clk 0:02:05]} 18. Qh5 {[%clk 0:02:15]}  Nxd3 {[%clk 0:01:02]} 19. cxd3 {[%clk 0:02:16]}  Ba6 {[%clk 0:01:01]} 20. Qf3 {[%clk 0:02:02]}  Bf6 {[%clk 0:01:00]} 21. Ng3 {[%clk 0:02:01]}  d5 {[%clk 0:00:54]} 22. exd5 {[%clk 0:01:47]}  Rxe1 {[%clk 0:00:52]} 23. Rxe1 {[%clk 0:01:46]}  Qxd5 {[%clk 0:00:52]} 24. Ne4 {[%clk 0:01:45]}  Bb2 {[%clk 0:00:43]} 25. Nc5 {[%clk 0:01:39]}  Qxf3 {[%clk 0:00:41]} 26. gxf3 {[%clk 0:01:38]}  Rb6 {[%clk 0:00:30]} 27. a4 {[%clk 0:01:32]}  Bd4 {[%clk 0:00:20]} 28. Re8+ {[%clk 0:01:28]}  Kh7 {[%clk 0:00:19]} 29. a5 {[%clk 0:01:28]}  Bxc5 {[%clk 0:00:18]} 30. axb6 {[%clk 0:01:28]}  Bxb6 {[%clk 0:00:18]} 31. Be3 {[%clk 0:01:26]}  Bxd3 {[%clk 0:00:17]} 32. Re7 {[%clk 0:01:19]}  Kg6 {[%clk 0:00:12]} 33. Bxb6 {[%clk 0:01:18]}  cxb6 {[%clk 0:00:12]} 34. Rxa7 {[%clk 0:01:18]}  c5 {[%clk 0:00:13]} 35. Rb7 {[%clk 0:01:15]}  cxb4 {[%clk 0:00:13]} 36. Rxb6+ {[%clk 0:01:15]}  Kg5 {[%clk 0:00:13]} 37. Rxb4 {[%clk 0:01:15]}  f5 {[%clk 0:00:13]} 38. f4+ {[%clk 0:01:14]}  Kh5 {[%clk 0:00:13]} 39. Kg2 {[%clk 0:01:14]}  g5 {[%clk 0:00:13]} 40. fxg5 {[%clk 0:01:14]}  hxg5 {[%clk 0:00:14]} 41. Kg3 {[%clk 0:01:14]}  Be4 {[%clk 0:00:13]} 42. f3 {[%clk 0:01:12]}  f4+ {[%clk 0:00:13]} 43. Kf2 {[%clk 0:01:10]}  Bf5 {[%clk 0:00:13]} 44. Kg2 {[%clk 0:01:10]}  Kh4 {[%clk 0:00:13]} 45. Rb8 {[%clk 0:01:07]}  Kh5 {[%clk 0:00:13]} 46. Rh8+ {[%clk 0:01:06]}  Kg6 {[%clk 0:00:13]} 47. h4 {[%clk 0:01:05]}  g4 {[%clk 0:00:13]} 48. Rg8+ {[%clk 0:01:01]}  Kh5 {[%clk 0:00:13]} 49. Rg5+ {[%clk 0:01:01]}  Kxh4 {[%clk 0:00:13]} 50. Rxf5 {[%clk 0:01:02]} 1-0


[Site "https://www.chess.com"]

[Event "Titled Tuesday Blitz March 21 Early 2023"]
[White "Avazkhonov, Alikhon"]
[Black "HSH1987"]
[WhiteFideId "14208504"]
[WhiteElo "1739"]
[BlackElo "2673"]
[Result "0-1"]
[Round "07"]
[TimeControl "180+2"]
[Date "2023.03.21"]
[WhiteClock "0:00:04"]
[BlackClock "0:00:12"]

1. d4 {[%clk 0:03:00]}  Nf6 {[%clk 0:02:59]} 2. c4 {[%clk 0:03:01]}  c5 {[%clk 0:02:59]} 3. d5 {[%clk 0:03:01]}  b5 {[%clk 0:02:59]} 4. cxb5 {[%clk 0:03:01]}  a6 {[%clk 0:02:59]} 5. e3 {[%clk 0:03:02]}  g6 {[%clk 0:02:51]} 6. Nc3 {[%clk 0:03:02]}  Bg7 {[%clk 0:02:51]} 7. Nf3 {[%clk 0:03:03]}  O-O {[%clk 0:02:51]} 8. bxa6 {[%clk 0:03:02]}  Bxa6 {[%clk 0:02:45]} 9. Bxa6 {[%clk 0:02:54]}  Nxa6 {[%clk 0:02:45]} 10. O-O {[%clk 0:02:54]}  d6 {[%clk 0:02:44]} 11. e4 {[%clk 0:02:54]}  Qb6 {[%clk 0:02:41]} 12. Nd2 {[%clk 0:02:55]}  Rfb8 {[%clk 0:02:38]} 13. Nc4 {[%clk 0:02:55]}  Qb4 {[%clk 0:02:38]} 14. Qd3 {[%clk 0:02:54]}  Nd7 {[%clk 0:02:25]} 15. a3 {[%clk 0:02:41]}  Qb7 {[%clk 0:02:09]} 16. Na5 {[%clk 0:02:40]}  Ne5 {[%clk 0:02:04]} 17. Qe2 {[%clk 0:02:38]}  Qb6 {[%clk 0:01:51]} 18. Nc4 {[%clk 0:02:23]}  Nxc4 {[%clk 0:01:49]} 19. Qxc4 {[%clk 0:02:24]}  Nc7 {[%clk 0:01:36]} 20. Rb1 {[%clk 0:02:21]}  Qb3 {[%clk 0:01:26]} 21. Qxb3 {[%clk 0:02:10]}  Rxb3 {[%clk 0:01:27]} 22. Bd2 {[%clk 0:02:10]}  Rab8 {[%clk 0:01:25]} 23. Na4 {[%clk 0:02:08]}  Nb5 {[%clk 0:01:13]} 24. Ra1 {[%clk 0:00:50]}  Ra8 {[%clk 0:00:53]} 25. Nb6 {[%clk 0:00:49]}  Ra6 {[%clk 0:00:46]} 26. a4 {[%clk 0:00:28]}  Bxb2 {[%clk 0:00:36]} 27. Ra2 {[%clk 0:00:17]}  Rxb6 {[%clk 0:00:32]} 28. axb5 {[%clk 0:00:17]}  R6xb5 {[%clk 0:00:32]} 29. Bh6 {[%clk 0:00:16]}  Bg7 {[%clk 0:00:31]} 30. Bg5 {[%clk 0:00:15]}  Bf6 {[%clk 0:00:27]} 31. Bxf6 {[%clk 0:00:14]}  exf6 {[%clk 0:00:27]} 32. Ra6 {[%clk 0:00:15]}  Rb6 {[%clk 0:00:27]} 33. Ra8+ {[%clk 0:00:13]}  Kg7 {[%clk 0:00:27]} 34. f4 {[%clk 0:00:10]}  Re3 {[%clk 0:00:25]} 35. Re8 {[%clk 0:00:09]}  Rb2 {[%clk 0:00:23]} 36. Rd8 {[%clk 0:00:03]}  Ree2 {[%clk 0:00:23]} 37. Ra1 {[%clk 0:00:02]}  Rxg2+ {[%clk 0:00:22]} 38. Kf1 {[%clk 0:00:03]}  Rxh2 {[%clk 0:00:23]} 39. Kg1 {[%clk 0:00:03]}  Rbg2+ {[%clk 0:00:22]} 40. Kf1 {[%clk 0:00:03]}  Rf2+ {[%clk 0:00:23]} 41. Kg1 {[%clk 0:00:04]}  Rfg2+ {[%clk 0:00:20]} 42. Kf1 {[%clk 0:00:04]}  Kh6 {[%clk 0:00:20]} 43. Rxd6 {[%clk 0:00:04]}  Kh5 {[%clk 0:00:20]} 44. Rxf6 {[%clk 0:00:04]}  Kg4 {[%clk 0:00:19]} 45. Rxf7 {[%clk 0:00:04]}  c4 {[%clk 0:00:15]} 46. d6 {[%clk 0:00:04]}  c3 {[%clk 0:00:14]} 47. d7 {[%clk 0:00:04]}  Kf3 {[%clk 0:00:12]} 0-1


[Site "https://www.chess.com"]

[Event "Titled Tuesday Blitz March 21 Early 2023"]
[White "Gubajdullin, Alexei"]
[Black "Szyszylo, Rafal"]
[WhiteFideId "4141202"]
[BlackFideId "1109626"]
[WhiteElo "2267"]
[BlackElo "1951"]
[Result "1-0"]
[Round "07"]
[TimeControl "180+2"]
[Date "2023.03.21"]
[WhiteClock "0:00:39"]
[BlackClock "0:00:02"]

1. d4 {[%clk 0:03:00]}  g6 {[%clk 0:02:58]} 2. Nf3 {[%clk 0:02:59]}  Bg7 {[%clk 0:02:58]} 3. Bf4 {[%clk 0:02:59]}  d6 {[%clk 0:02:58]} 4. e3 {[%clk 0:02:59]}  Nd7 {[%clk 0:02:59]} 5. h3 {[%clk 0:02:59]}  e5 {[%clk 0:02:58]} 6. Bh2 {[%clk 0:02:58]}  Nh6 {[%clk 0:02:57]} 7. Be2 {[%clk 0:02:56]}  Qe7 {[%clk 0:02:52]} 8. O-O {[%clk 0:02:55]}  O-O {[%clk 0:02:52]} 9. Nc3 {[%clk 0:02:55]}  e4 {[%clk 0:02:50]} 10. Nd2 {[%clk 0:02:54]}  f5 {[%clk 0:02:50]} 11. Nd5 {[%clk 0:02:53]}  Qd8 {[%clk 0:02:50]} 12. c4 {[%clk 0:02:52]}  c6 {[%clk 0:02:43]} 13. Nf4 {[%clk 0:02:52]}  Nf6 {[%clk 0:02:42]} 14. d5 {[%clk 0:02:51]}  Qe7 {[%clk 0:02:33]} 15. Qb3 {[%clk 0:02:47]}  c5 {[%clk 0:02:15]} 16. f3 {[%clk 0:02:40]}  g5 {[%clk 0:02:11]} 17. Ne6 {[%clk 0:02:36]}  Bxe6 {[%clk 0:02:11]} 18. dxe6 {[%clk 0:02:36]}  Qxe6 {[%clk 0:02:06]} 19. fxe4 {[%clk 0:02:36]}  Nxe4 {[%clk 0:02:05]} 20. Nxe4 {[%clk 0:02:35]}  Qxe4 {[%clk 0:01:44]} 21. Bf3 {[%clk 0:02:35]}  Qe7 {[%clk 0:01:38]} 22. Bxb7 {[%clk 0:02:25]}  Rab8 {[%clk 0:01:35]} 23. Bd5+ {[%clk 0:02:24]}  Kh8 {[%clk 0:01:35]} 24. Qd3 {[%clk 0:02:23]}  Rxb2 {[%clk 0:01:30]} 25. Rab1 {[%clk 0:02:23]}  Rfb8 {[%clk 0:01:27]} 26. Rxb2 {[%clk 0:02:10]}  Rxb2 {[%clk 0:01:27]} 27. Rf2 {[%clk 0:01:50]}  Rxf2 {[%clk 0:01:10]} 28. Kxf2 {[%clk 0:01:45]}  Be5 {[%clk 0:01:11]} 29. g3 {[%clk 0:01:39]}  g4 {[%clk 0:01:02]} 30. h4 {[%clk 0:01:36]}  Kg7 {[%clk 0:00:46]} 31. Kg2 {[%clk 0:01:31]}  Nf7 {[%clk 0:00:41]} 32. Qxf5 {[%clk 0:01:29]}  h5 {[%clk 0:00:30]} 33. Qxh5 {[%clk 0:01:26]}  Nh6 {[%clk 0:00:18]} 34. Be4 {[%clk 0:01:15]}  Qf6 {[%clk 0:00:18]} 35. Qe8 {[%clk 0:01:07]}  Ba1 {[%clk 0:00:18]} 36. Qd7+ {[%clk 0:01:00]}  Kf8 {[%clk 0:00:16]} 37. Qb7 {[%clk 0:00:56]}  Nf7 {[%clk 0:00:13]} 38. Bg1 {[%clk 0:00:47]}  Qc3 {[%clk 0:00:10]} 39. Bf2 {[%clk 0:00:41]}  Qxc4 {[%clk 0:00:06]} 40. Bd5 {[%clk 0:00:41]}  Qxd5+ {[%clk 0:00:01]} 41. Qxd5 {[%clk 0:00:40]}  Be5 {[%clk 0:00:02]} 42. Qe6 {[%clk 0:00:39]} 1-0


[Site "https://www.chess.com"]

[Event "Titled Tuesday Blitz March 21 Early 2023"]
[White "ArtemDyachuk"]
[Black "Do Nascimento,Christian Almeida"]
[BlackFideId "2143801"]
[WhiteElo "2381"]
[BlackElo "2125"]
[Result "0-1"]
[Round "07"]
[TimeControl "180+2"]
[Date "2023.03.21"]
[WhiteClock "0:00:01"]
[BlackClock "0:01:03"]

1. Nf3 {[%clk 0:03:00]}  d5 {[%clk 0:02:55]} 2. c4 {[%clk 0:02:59]}  d4 {[%clk 0:02:55]} 3. b4 {[%clk 0:02:58]}  Nf6 {[%clk 0:02:55]} 4. Bb2 {[%clk 0:02:58]}  c5 {[%clk 0:02:53]} 5. bxc5 {[%clk 0:02:58]}  Nc6 {[%clk 0:02:53]} 6. e3 {[%clk 0:02:58]}  e5 {[%clk 0:02:52]} 7. d3 {[%clk 0:02:52]}  Bxc5 {[%clk 0:02:51]} 8. e4 {[%clk 0:02:46]}  O-O {[%clk 0:02:47]} 9. Nbd2 {[%clk 0:02:45]}  Bg4 {[%clk 0:02:40]} 10. h3 {[%clk 0:02:43]}  Bh5 {[%clk 0:02:37]} 11. g4 {[%clk 0:02:43]}  Bg6 {[%clk 0:02:38]} 12. Nh4 {[%clk 0:02:43]}  Nd7 {[%clk 0:02:37]} 13. Nf5 {[%clk 0:02:41]}  Bb4 {[%clk 0:02:24]} 14. Bg2 {[%clk 0:02:28]}  Qg5 {[%clk 0:02:12]} 15. h4 {[%clk 0:02:21]}  Qf4 {[%clk 0:02:12]} 16. Bc1 {[%clk 0:02:15]}  Nc5 {[%clk 0:02:04]} 17. Qe2 {[%clk 0:02:04]}  Bxf5 {[%clk 0:01:59]} 18. gxf5 {[%clk 0:02:03]}  Bc3 {[%clk 0:01:54]} 19. Kd1 {[%clk 0:02:03]}  Qh6 {[%clk 0:01:43]} 20. Nf3 {[%clk 0:01:59]}  Qd6 {[%clk 0:01:42]} 21. h5 {[%clk 0:01:52]}  Bxa1 {[%clk 0:01:38]} 22. Nh4 {[%clk 0:01:40]}  Nb4 {[%clk 0:01:29]} 23. h6 {[%clk 0:01:35]}  g6 {[%clk 0:01:29]} 24. Rh3 {[%clk 0:01:15]}  Bc3 {[%clk 0:01:21]} 25. Rg3 {[%clk 0:01:13]}  Qa6 {[%clk 0:01:19]} 26. Qh5 {[%clk 0:00:17]}  Qxa2 {[%clk 0:01:05]} 27. Nxg6 {[%clk 0:00:01]}  Qc2# {[%clk 0:01:03]} 0-1


[Site "https://www.chess.com"]

[Event "Titled Tuesday Blitz March 21 Early 2023"]
[White "Buscar, Michael"]
[Black "koncheto"]
[WhiteFideId "2603616"]
[WhiteElo "2010"]
[BlackElo "2498"]
[Result "0-1"]
[Round "07"]
[TimeControl "180+2"]
[Date "2023.03.21"]
[WhiteClock "0:00:41"]
[BlackClock "0:00:04"]

1. d4 {[%clk 0:02:59]}  Nf6 {[%clk 0:02:55]} 2. c4 {[%clk 0:02:59]}  e6 {[%clk 0:02:55]} 3. Nc3 {[%clk 0:02:59]}  Bb4 {[%clk 0:02:55]} 4. e3 {[%clk 0:02:56]}  O-O {[%clk 0:02:55]} 5. Bd3 {[%clk 0:02:56]}  d5 {[%clk 0:02:54]} 6. Ne2 {[%clk 0:02:57]}  c5 {[%clk 0:02:49]} 7. a3 {[%clk 0:02:56]}  Bxc3+ {[%clk 0:02:47]} 8. Nxc3 {[%clk 0:02:56]}  cxd4 {[%clk 0:02:48]} 9. exd4 {[%clk 0:02:56]}  dxc4 {[%clk 0:02:46]} 10. Bxc4 {[%clk 0:02:56]}  Nc6 {[%clk 0:02:47]} 11. Be3 {[%clk 0:02:55]}  b6 {[%clk 0:02:47]} 12. O-O {[%clk 0:02:55]}  Bb7 {[%clk 0:02:48]} 13. d5 {[%clk 0:02:54]}  Ne5 {[%clk 0:02:21]} 14. Bb3 {[%clk 0:02:43]}  Nxd5 {[%clk 0:02:07]} 15. Nxd5 {[%clk 0:02:37]}  Bxd5 {[%clk 0:02:05]} 16. Bxd5 {[%clk 0:02:36]}  exd5 {[%clk 0:01:51]} 17. Bd4 {[%clk 0:02:34]}  Nc6 {[%clk 0:01:31]} 18. Qg4 {[%clk 0:02:23]}  Nxd4 {[%clk 0:01:25]} 19. Qxd4 {[%clk 0:02:24]}  Rc8 {[%clk 0:01:26]} 20. Rad1 {[%clk 0:02:23]}  Rc2 {[%clk 0:01:26]} 21. Rd3 {[%clk 0:02:19]}  Re8 {[%clk 0:01:12]} 22. b4 {[%clk 0:02:17]}  Ra2 {[%clk 0:01:06]} 23. h4 {[%clk 0:01:56]}  h5 {[%clk 0:01:04]} 24. Rg3 {[%clk 0:01:50]}  g6 {[%clk 0:00:58]} 25. Rd1 {[%clk 0:01:50]}  Re6 {[%clk 0:00:26]} 26. Qxd5 {[%clk 0:00:56]}  Re1+ {[%clk 0:00:25]} 27. Kh2 {[%clk 0:00:56]}  Qxh4+ {[%clk 0:00:15]} 28. Rh3 {[%clk 0:00:52]}  Rxd1 {[%clk 0:00:06]} 29. Qxa2 {[%clk 0:00:45]}  Qf4+ {[%clk 0:00:04]} 30. g3 {[%clk 0:00:46]}  Qf3 {[%clk 0:00:04]} 31. g4 {[%clk 0:00:41]}  Rh1# {[%clk 0:00:04]} 0-1


[Site "https://www.chess.com"]

[Event "Titled Tuesday Blitz March 21 Early 2023"]
[White "Sovetbekova, Nurai"]
[Black "Kopczynski, Michal"]
[WhiteFideId "13801910"]
[BlackFideId "1124200"]
[WhiteElo "1857"]
[BlackElo "2212"]
[Result "1-0"]
[Round "07"]
[TimeControl "180+2"]
[Date "2023.03.21"]
[WhiteClock "0:01:17"]
[BlackClock "0:01:55"]

1. d4 {[%clk 0:03:00]}  Nf6 {[%clk 0:03:00]} 2. c4 {[%clk 0:03:00]}  g6 {[%clk 0:03:00]} 3. Nc3 {[%clk 0:03:00]}  Bg7 {[%clk 0:03:01]} 4. e4 {[%clk 0:02:55]}  d6 {[%clk 0:03:02]} 5. Nf3 {[%clk 0:02:55]}  O-O {[%clk 0:03:02]} 6. Be2 {[%clk 0:02:56]}  e5 {[%clk 0:03:03]} 7. d5 {[%clk 0:02:56]}  Ne8 {[%clk 0:03:02]} 8. Bd2 {[%clk 0:02:24]}  f5 {[%clk 0:03:02]} 9. h4 {[%clk 0:02:24]}  f4 {[%clk 0:03:01]} 10. Qc2 {[%clk 0:02:07]}  a5 {[%clk 0:03:01]} 11. O-O-O {[%clk 0:02:04]}  Na6 {[%clk 0:03:01]} 12. g3 {[%clk 0:02:01]}  Bg4 {[%clk 0:02:42]} 13. gxf4 {[%clk 0:01:56]}  exf4 {[%clk 0:02:38]} 14. Rdg1 {[%clk 0:01:51]}  Bxf3 {[%clk 0:02:21]} 15. Bxf3 {[%clk 0:01:50]}  c6 {[%clk 0:02:13]} 16. h5 {[%clk 0:01:45]}  g5 {[%clk 0:02:13]} 17. h6 {[%clk 0:01:42]}  Bf6 {[%clk 0:02:13]} 18. e5 {[%clk 0:01:34]}  Bxe5 {[%clk 0:02:08]} 19. Ne4 {[%clk 0:01:23]}  cxd5 {[%clk 0:01:57]} 20. Nxg5 {[%clk 0:01:19]}  Kh8 {[%clk 0:01:55]} 21. Qxh7# {[%clk 0:01:17]} 1-0


[Site "https://www.chess.com"]

[Event "Titled Tuesday Blitz March 21 Early 2023"]
[White "Botez, Alexandra"]
[Black "Gonzalez, Francisco Silva"]
[WhiteFideId "2603365"]
[BlackFideId "1512285"]
[WhiteElo "2059"]
[BlackElo "2074"]
[Result "1/2-1/2"]
[Round "07"]
[TimeControl "180+2"]
[Date "2023.03.21"]
[WhiteClock "0:00:04"]
[BlackClock "0:00:22"]

1. d4 {[%clk 0:03:00]}  Nf6 {[%clk 0:02:55]} 2. c4 {[%clk 0:02:59]}  e6 {[%clk 0:02:54]} 3. Nf3 {[%clk 0:02:58]}  d5 {[%clk 0:02:54]} 4. g3 {[%clk 0:02:57]}  dxc4 {[%clk 0:02:53]} 5. Bg2 {[%clk 0:02:51]}  Nc6 {[%clk 0:02:52]} 6. O-O {[%clk 0:02:49]}  Rb8 {[%clk 0:02:51]} 7. a4 {[%clk 0:02:47]}  b6 {[%clk 0:02:50]} 8. Na3 {[%clk 0:02:34]}  Bxa3 {[%clk 0:02:49]} 9. Rxa3 {[%clk 0:02:31]}  O-O {[%clk 0:02:49]} 10. Bf4 {[%clk 0:02:20]}  h6 {[%clk 0:02:41]} 11. Rc3 {[%clk 0:02:11]}  Ba6 {[%clk 0:02:40]} 12. Re1 {[%clk 0:01:27]}  Nd5 {[%clk 0:02:32]} 13. Rc1 {[%clk 0:01:24]}  Nxf4 {[%clk 0:02:31]} 14. gxf4 {[%clk 0:01:24]}  Qd6 {[%clk 0:02:29]} 15. e3 {[%clk 0:01:24]}  Na5 {[%clk 0:02:23]} 16. Ne5 {[%clk 0:01:21]}  Rbd8 {[%clk 0:02:14]} 17. Qg4 {[%clk 0:01:15]}  f5 {[%clk 0:02:10]} 18. Qg3 {[%clk 0:01:11]}  c5 {[%clk 0:02:09]} 19. Red1 {[%clk 0:01:01]}  cxd4 {[%clk 0:02:06]} 20. Rxd4 {[%clk 0:01:01]}  Qc7 {[%clk 0:02:05]} 21. Nf3 {[%clk 0:00:46]}  Rxd4 {[%clk 0:02:04]} 22. Nxd4 {[%clk 0:00:46]}  Qd6 {[%clk 0:02:00]} 23. Qg6 {[%clk 0:00:44]}  Bc8 {[%clk 0:01:56]} 24. Kh1 {[%clk 0:00:32]}  Rf6 {[%clk 0:01:48]} 25. Qe8+ {[%clk 0:00:32]}  Qf8 {[%clk 0:01:49]} 26. Qb5 {[%clk 0:00:26]}  Rg6 {[%clk 0:01:42]} 27. Bf3 {[%clk 0:00:24]}  Qf7 {[%clk 0:01:35]} 28. Bh5 {[%clk 0:00:23]}  Bb7+ {[%clk 0:01:34]} 29. f3 {[%clk 0:00:20]}  Nb3 {[%clk 0:01:26]} 30. Nxb3 {[%clk 0:00:17]}  cxb3 {[%clk 0:01:23]} 31. Qxb3 {[%clk 0:00:17]}  Kh7 {[%clk 0:01:16]} 32. Rf1 {[%clk 0:00:17]}  Rg1+ {[%clk 0:01:10]} 33. Kxg1 {[%clk 0:00:16]}  Qxh5 {[%clk 0:01:11]} 34. Qc2 {[%clk 0:00:13]}  Bxf3 {[%clk 0:01:09]} 35. Qf2 {[%clk 0:00:13]}  Bd5 {[%clk 0:01:07]} 36. Qg3 {[%clk 0:00:12]}  Qe2 {[%clk 0:01:07]} 37. Qf2 {[%clk 0:00:12]}  Qc4 {[%clk 0:01:05]} 38. h4 {[%clk 0:00:11]}  Qxa4 {[%clk 0:01:05]} 39. Kh2 {[%clk 0:00:12]}  Qe4 {[%clk 0:01:05]} 40. Rg1 {[%clk 0:00:12]}  a5 {[%clk 0:00:46]} 41. Kh3 {[%clk 0:00:12]}  b5 {[%clk 0:00:42]} 42. Qg3 {[%clk 0:00:12]}  Qf3 {[%clk 0:00:42]} 43. Qxf3 {[%clk 0:00:11]}  Bxf3 {[%clk 0:00:43]} 44. Kg3 {[%clk 0:00:11]}  Bd5 {[%clk 0:00:41]} 45. Ra1 {[%clk 0:00:12]}  a4 {[%clk 0:00:41]} 46. Kf2 {[%clk 0:00:11]}  g5 {[%clk 0:00:40]} 47. hxg5 {[%clk 0:00:09]}  hxg5 {[%clk 0:00:41]} 48. fxg5 {[%clk 0:00:10]}  Kg6 {[%clk 0:00:40]} 49. Rg1 {[%clk 0:00:11]}  b4 {[%clk 0:00:39]} 50. Ke1 {[%clk 0:00:10]}  a3 {[%clk 0:00:39]} 51. bxa3 {[%clk 0:00:10]}  bxa3 {[%clk 0:00:39]} 52. Kd2 {[%clk 0:00:10]}  a2 {[%clk 0:00:39]} 53. Kc3 {[%clk 0:00:10]}  Be4 {[%clk 0:00:39]} 54. Kb3 {[%clk 0:00:05]}  Bb1 {[%clk 0:00:39]} 55. Kb2 {[%clk 0:00:06]}  e5 {[%clk 0:00:38]} 56. Rg2 {[%clk 0:00:04]}  f4 {[%clk 0:00:38]} 57. exf4 {[%clk 0:00:04]}  exf4 {[%clk 0:00:38]} 58. Ka1 {[%clk 0:00:05]}  Kh5 {[%clk 0:00:38]} 59. g6 {[%clk 0:00:04]}  Bxg6 {[%clk 0:00:38]} 60. Kxa2 {[%clk 0:00:04]}  Bf7+ {[%clk 0:00:32]} 61. Kb2 {[%clk 0:00:03]}  Bd5 {[%clk 0:00:33]} 62. Rf2 {[%clk 0:00:03]}  Kg5 {[%clk 0:00:32]} 63. Kc3 {[%clk 0:00:04]}  Kg4 {[%clk 0:00:32]} 64. Kd2 {[%clk 0:00:04]}  Kg3 {[%clk 0:00:32]} 65. Ke1 {[%clk 0:00:05]}  Bc4 {[%clk 0:00:32]} 66. Rd2 {[%clk 0:00:04]}  Kf3 {[%clk 0:00:30]} 67. Rf2+ {[%clk 0:00:05]}  Ke3 {[%clk 0:00:30]} 68. Rb2 {[%clk 0:00:04]}  Bd3 {[%clk 0:00:30]} 69. Rf2 {[%clk 0:00:03]}  Ke4 {[%clk 0:00:28]} 70. Rd2 {[%clk 0:00:03]}  Ke3 {[%clk 0:00:28]} 71. Rf2 {[%clk 0:00:04]}  Ke4 {[%clk 0:00:28]} 72. Rh2 {[%clk 0:00:04]}  Ke3 {[%clk 0:00:28]} 73. Rh8 {[%clk 0:00:03]}  Kf3 {[%clk 0:00:26]} 74. Rf8 {[%clk 0:00:03]}  Kg3 {[%clk 0:00:25]} 75. Rg8+ {[%clk 0:00:04]}  Kf3 {[%clk 0:00:25]} 76. Rf8 {[%clk 0:00:04]}  Kg3 {[%clk 0:00:24]} 77. Rd8 {[%clk 0:00:04]}  Ba6 {[%clk 0:00:23]} 78. Rg8+ {[%clk 0:00:04]}  Kf3 {[%clk 0:00:23]} 79. Rh8 {[%clk 0:00:03]}  Kg2 {[%clk 0:00:23]} 80. Rf8 {[%clk 0:00:03]}  Kf3 {[%clk 0:00:22]} 81. Rxf4+ {[%clk 0:00:04]} 1/2-1/2


[Site "https://www.chess.com"]

[Event "Titled Tuesday Blitz March 21 Early 2023"]
[White "Bas Mas, Jose Joaquin"]
[Black "Biriukov, Ilja"]
[WhiteFideId "22219064"]
[BlackFideId "4113373"]
[WhiteElo "2233"]
[BlackElo "2426"]
[Result "1-0"]
[Round "07"]
[TimeControl "180+2"]
[Date "2023.03.21"]
[WhiteClock "0:01:54"]
[BlackClock "0:01:20"]

1. e4 {[%clk 0:03:00]}  c5 {[%clk 0:02:57]} 2. Nc3 {[%clk 0:03:00]}  d6 {[%clk 0:02:57]} 3. f4 {[%clk 0:02:59]}  Nc6 {[%clk 0:02:57]} 4. Bb5 {[%clk 0:02:59]}  Bd7 {[%clk 0:02:55]} 5. Bxc6 {[%clk 0:02:58]}  Bxc6 {[%clk 0:02:55]} 6. Nf3 {[%clk 0:02:57]}  g6 {[%clk 0:02:48]} 7. O-O {[%clk 0:02:57]}  Bg7 {[%clk 0:02:47]} 8. d3 {[%clk 0:02:57]}  e6 {[%clk 0:02:47]} 9. f5 {[%clk 0:02:48]}  Ne7 {[%clk 0:02:33]} 10. fxe6 {[%clk 0:02:47]}  fxe6 {[%clk 0:02:32]} 11. Ng5 {[%clk 0:02:46]}  Qd7 {[%clk 0:02:19]} 12. Qg4 {[%clk 0:02:44]}  e5 {[%clk 0:01:58]} 13. Ne6 {[%clk 0:02:20]}  Rg8 {[%clk 0:01:50]} 14. Bg5 {[%clk 0:02:06]}  b6 {[%clk 0:01:32]} 15. Rf2 {[%clk 0:01:56]}  Bb7 {[%clk 0:01:20]} 16. Raf1 {[%clk 0:01:54]}  Bc8 {[%clk 0:01:20]} 17. Nxg7+ {[%clk 0:01:54]} 1-0


[Site "https://www.chess.com"]